bitfinex-derivatives/quotes_ETHF0:USTF0_20250927
["timestamp","ask_amount","ask_price","bid_price","bid_amount"]
[1758959534330,0.31108436,4010.9,4010.8,0.6745]
[1758959534626,0.31108436,4010.9,4010.8,0.9255]
[1758959535215,0.00188436,4010.9,4010.8,0.9255]
[1758959546534,0.00188436,4010.9,4010.8,2.71796617]
[1758959547436,0.1285,4011.5,4010.9,0.2257]
[1758959547632,0.3348,4011.4,4011.3,0.6645]
[1758959547828,0.3348,4011.4,4011.3,4.1233]
[1758959548536,0.33741232,4011.4,4011.3,4.1233]
[1758959550737,0.33741232,4011.4,4011.3,4.31804716]
[1758959556540,0.00261232,4011.4,4011.3,4.31804716]
[1758959557944,0.00261232,4011.4,4011.3,6.11067583]
[1758959558345,0.00261232,4011.4,4011.3,4.31804716]
[1758959558642,0.00261232,4011.4,4011.3,6.11067583]
[1758959559344,0.00261232,4011.4,4011.3,4.31804716]
[1758959578757,0.31521232,4011.4,4011.3,4.31804716]
[1758959580067,0.53131232,4011.4,4011.3,4.06704716]
[1758959580261,0.53131232,4011.4,4011.3,43.19704716]
[1758959580961,0.53131232,4011.4,4011.3,4.06704716]
[1758959581163,0.53131232,4011.4,4011.3,42.97134716]
[1758959581462,0.53131232,4011.4,4011.3,3.8976]
[1758959581463,0.73901232,4011.4,4011.3,3.8976]
[1758959581657,0.73901232,4011.4,4011.3,4.10038074]
[1758959581862,0.73901232,4011.4,4011.3,3.8976]
[1758959582265,0.73901232,4011.4,4011.3,3.2078]
[1758959582460,0.73901232,4011.4,4011.3,5.2501212]
[1758959583269,0.73901232,4011.4,4011.3,5.4658212]
[1758959584376,0.73901232,4011.4,4011.3,5.2148212]
[1758959584565,0.73901232,4011.4,4011.3,5.4658212]
[1758959585666,0.73901232,4011.4,4011.3,3.8907]
[1758959589271,0.31521232,4011.4,4011.3,4.1167]
[1758959590566,0.00261232,4011.4,4011.3,4.1167]
[1758959591070,0.34121232,4011.4,4011.3,4.1167]
[1758959596993,0.55961232,4011.4,4011.3,4.1167]
[1758959599792,0.78591232,4011.4,4011.3,3.8907]
[1758959602200,0.78591232,4011.4,4011.3,5.00046874]
[1758959602495,0.78591232,4011.4,4011.3,3.4578]
[1758959604796,0.78591232,4011.4,4011.3,3.2078]
[1758959604997,5.78591232,4011.4,4011.3,3.4578]
[1758959606094,5.78591232,4011.4,4011.3,4.80202823]
[1758959606296,5.78591232,4011.4,4011.3,3.4578]
[1758959606495,5.78591232,4011.4,4011.3,4.80209475]
[1758959608097,5.78591232,4011.4,4011.3,3.4578]
[1758959611201,0.78591232,4011.4,4011.3,3.2078]
[1758959611401,0.78591232,4011.4,4011.3,3.4578]
[1758959616307,0.78591232,4011.4,4011.3,3.683]
[1758959621013,0.78591232,4011.4,4011.3,0.4752]
[1758959622305,0.44731232,4011.4,4011.1,4.55209475]
[1758959622508,0.44731232,4011.4,4011.3,0.25]
[1758959622811,0.5524829,4011.4,4011.3,0.25]
[1758959623011,0.8834829,4011.4,4011.3,0.25]
[1758959625806,0.8834829,4011.4,4011.2,0.89537301]
[1758959626110,0.87047058,4011.3,4011.2,0.89537301]
[1758959626312,0.87047058,4011.3,4011.2,1.14537301]
[1758959626710,0.87047058,4011.3,4011.2,0.25]
[1758959627907,0.7653,4011.2,4011.1,0.89537301]
[1758959628113,0.87047058,4011.2,4011.1,1.14537301]
[1758959628614,0.87047058,4011.2,4011.1,0.25]
[1758959629815,0.87047058,4011.2,4011.1,0.4752]
[1758959632713,0.87047058,4011.2,4011.1,0.6813]
[1758959635116,0.87047058,4011.2,4011.1,1.57667301]
[1758959637305,0.87047058,4011.2,4011.1,1.32667301]
[1758959637510,0.87047058,4011.2,4011.1,1.57667301]
[1758959642817,0.87047058,4011.2,4011.1,1.35147301]
[1758959643013,0.87047058,4011.2,4011.1,1.14537301]
[1758959644925,0.87047058,4011.2,4011.1,0.89537301]
[1758959645118,0.87047058,4011.2,4011.1,0.25]
[1758959646224,0.87047058,4011.2,4011.1,1.14537301]
[1758959646418,0.87047058,4011.2,4011.1,1.36317301]
[1758959648530,0.87047058,4011.2,4011.1,1.14537301]
[1758959651129,0.87047058,4011.2,4011.1,0.25]
[1758959652921,0.53947058,4011.2,4010.9,1.34429475]
[1758959653126,0.7436,4011.2,4011.1,0.25]
[1758959653325,0.84695009,4011.2,4011.1,0.25]
[1758959660544,0.53765009,4011.2,4011.0,1.34429475]
[1758959660839,0.84655009,4011.1,4011.0,1.55269475]
[1758959661037,0.84655009,4011.1,4011.0,1.80269475]
[1758959662041,0.84655009,4011.1,4011.0,1.55269475]
[1758959662341,0.84655009,4011.1,4011.0,1.59429475]
[1758959662638,0.84655009,4011.1,4011.0,1.80269475]
[1758959663940,0.84655009,4011.1,4011.0,1.55269475]
[1758959664133,0.84655009,4011.1,4011.0,1.80269475]
[1758959665341,0.84655009,4011.1,4011.0,2.00759475]
[1758959670641,0.84655009,4011.1,4011.0,1.75759475]
[1758959670843,0.84655009,4011.1,4011.0,2.00759475]
[1758959681950,0.84655009,4011.1,4011.0,1.75759475]
[1758959682249,0.84655009,4011.1,4011.0,0.4584]
[1758959686251,0.84655009,4011.1,4011.0,0.6633]
[1758959686649,0.84655009,4011.1,4011.0,0.8894]
[1758959690154,0.84655009,4011.1,4011.0,0.6633]
[1758959696362,0.84655009,4011.1,4011.0,0.8894]
[1758959696562,0.41265009,4011.1,4011.0,0.8894]
[1758959698764,0.63325009,4011.1,4011.0,0.8894]
[1758959700272,0.85095009,4011.1,4011.0,0.6633]
[1758959701558,0.85095009,4011.1,4011.0,0.4133]
[1758959701860,0.85095009,4011.1,4011.0,0.4584]
[1758959704968,0.85095009,4011.1,4011.0,0.6675]
[1758959707170,0.85180231,4011.1,4011.0,0.6675]
[1758959710574,0.85180231,4011.1,4011.0,0.4584]
[1758959710775,0.85180231,4011.1,4011.0,1.35574941]
[1758959718489,0.85180231,4011.1,4011.0,1.57244941]
[1758959723694,0.85180231,4011.1,4011.0,1.79854941]
[1758959724294,0.85363826,4011.1,4011.0,1.79854941]
[1758959728798,0.85363826,4011.1,4011.0,1.57244941]
[1758959740103,0.85363826,4011.1,4011.0,0.6751]
[1758959748504,0.85363826,4011.1,4011.0,0.4251]
[1758959748802,0.85363826,4011.1,4011.0,1.57253857]
[1758959749195,0.85363826,4011.1,4011.0,1.14743857]
[1758959751704,0.85363826,4011.1,4011.0,1.36063857]
[1758959754606,0.7476,4011.1,4011.0,1.36063857]
[1758959754810,0.85636782,4011.1,4011.0,1.79253857]
[1758959755210,0.85636782,4011.1,4011.0,1.56643857]
[1758959757908,0.85636782,4011.1,4011.0,1.79253857]
[1758959758405,0.85636782,4011.1,4011.0,1.54253857]
[1758959758603,0.85636782,4011.1,4011.0,1.79253857]
[1758959760506,0.85636782,4011.1,4011.0,1.56643857]
[1758959763414,0.85636782,4011.1,4011.0,1.31643857]
[1758959763614,0.85636782,4011.1,4011.0,1.56643857]
[1758959764110,0.85636782,4011.1,4010.4,0.2047]
[1758959764111,0.3428,4010.5,4010.4,0.2047]
[1758959764315,0.3428,4010.5,4010.4,0.4105]
[1758959764316,0.98606782,4010.5,4010.4,0.4105]
[1758959767511,0.55276782,4010.5,4010.4,0.6364]
[1758959768113,0.55262324,4010.5,4010.4,0.6364]
[1758959769319,0.99192324,4010.5,4010.4,0.2047]
[1758959769517,0.99192324,4010.5,4010.4,0.8872]
[1758959769910,0.99192324,4010.5,4010.4,0.6613]
[1758959770512,0.99192324,4010.5,4010.2,1.34815796]
[1758959770717,0.7786,4010.3,4010.2,0.00203786]
[1758959770913,0.88722324,4010.3,4010.2,0.46213786]
[1758959772519,0.88722324,4010.3,4010.2,0.21213786]
[1758959772822,0.88722324,4010.3,4010.2,0.46213786]
[1758959778226,0.88722324,4010.3,4010.2,0.25203786]
[1758959778816,0.88722324,4010.3,4010.2,0.00203786]
[1758959779023,0.88722324,4010.3,4010.2,0.25203786]
[1758959785522,0.88722324,4010.3,4010.2,0.46213786]
[1758959786725,0.67162324,4010.3,4010.2,0.90263786]
[1758959788333,0.67162324,4010.3,4010.2,0.67643786]
[1758959788630,0.88972324,4010.3,4010.2,0.67643786]
[1758959791131,0.88972324,4010.3,4010.2,0.21213786]
[1758959791335,0.88972324,4010.3,4010.2,0.25203786]
[1758959791833,0.88972324,4010.3,4010.2,0.00203786]
[1758959792132,0.88972324,4010.3,4010.2,0.25203786]
[1758959793534,0.88972324,4010.3,4010.2,0.00203786]
[1758959793734,0.88972324,4010.3,4010.2,0.25203786]
[1758959795426,0.88972324,4010.3,4010.2,1.14897345]
[1758959798934,0.88972324,4010.3,4010.2,0.25203786]
[1758959800924,0.88972324,4010.3,4010.2,1.14919392]
[1758959803738,0.88972324,4010.3,4010.2,0.89919392]
[1758959803931,0.88972324,4010.3,4010.2,1.14919392]
[1758959807838,0.88972324,4010.3,4010.2,1.37379392]
[1758959808141,0.88972324,4010.3,4010.2,0.47663786]
[1758959808340,0.88972324,4010.3,4010.2,1.37379392]
[1758959809341,0.88972324,4010.3,4010.2,0.47663786]
[1758959809541,0.7811,4010.3,4010.2,0.47663786]
[1758959809741,0.88564882,4010.3,4010.2,0.47663786]
[1758959814351,0.88564882,4010.3,4010.2,0.22663786]
[1758959814550,0.88564882,4010.3,4010.2,0.47663786]
[1758959816058,0.88564882,4010.3,4010.2,0.00203786]
[1758959818665,0.88564882,4010.3,4010.2,0.21293786]
[1758959818862,0.88564882,4010.3,4010.2,1.54179392]
[1758959819564,0.88564882,4010.3,4010.2,1.31559392]
[1758959827070,0.88564882,4010.3,4010.2,1.36009392]
[1758959828675,0.88564882,4010.3,4010.2,1.14919392]
[1758959829469,0.88564882,4010.3,4010.2,0.89919392]
[1758959837987,0.88564882,4010.3,4010.2,1.11269392]
[1758959843488,0.88564882,4010.3,4010.2,1.33139392]
[1758959843794,0.02035338,4010.3,4010.2,7.00655796]
[1758959844592,0.35125338,4010.3,4010.2,2.00655796]
[1758959844792,0.78125338,4010.3,4010.2,0.68423786]
[1758959844988,0.78125338,4010.3,4010.2,0.91043786]
[1758959848293,0.78125338,4010.3,4010.2,0.68423786]
[1758959850493,0.78125338,4010.3,4010.2,0.43423786]
[1758959850689,0.78125338,4010.3,4010.2,0.68423786]
[1758959852597,0.78125338,4010.3,4010.2,0.43423786]
[1758959852895,0.78125338,4010.3,4010.2,0.00203786]
[1758959858098,0.1353,4010.5,4010.3,7.92657935]
[1758959858296,0.53404109,4010.4,4010.3,7.92657935]
[1758959858601,0.53404109,4010.4,4010.3,8.25877935]
[1758959859204,0.1353,4010.5,4010.4,7.39253826]
[1758959859506,3.2078,4010.6,4010.5,0.3322]
[1758959860206,0.25,4010.8,4010.6,4.18473826]
[1758959860407,3.2078,4010.7,4010.6,4.18473826]
[1758959860608,13.3478,4010.7,4010.6,4.18473826]
[1758959861301,9.16306174,4010.7,4010.5,0.3322]
[1758959861499,9.16306174,4010.7,4010.3,0.3322]
[1758959862303,9.16306174,4010.7,4010.2,3.20983786]
[1758959862801,49.96306174,4010.7,4010.3,0.3322]
[1758959863504,49.96306174,4010.7,4010.4,0.3322]
[1758959863906,0.25,4010.6,4010.4,0.3322]
[1758959864099,9.91,4010.6,4010.4,0.3322]
[1758959864294,9.91,4010.6,4010.2,3.54203786]
[1758959865006,9.91,4010.6,4010.3,0.3322]
[1758959868010,9.91,4010.6,4010.5,0.1332]
[1758959868210,9.91,4010.6,4010.5,0.4654]
[1758959871220,10.0126439,4010.6,4010.5,0.4654]
[1758959873821,10.0126439,4010.6,4010.2,3.20983786]
[1758959874020,0.1026439,4010.5,4010.3,0.3306]
[1758959874219,0.3526439,4010.4,4010.3,0.3306]
[1758959874419,0.3526439,4010.4,4010.3,0.5504]
[1758959874420,10.2026439,4010.4,4010.3,0.5504]
[1758959880826,10.2026439,4010.4,4010.3,0.3306]
[1758959883823,10.2026439,4010.4,4010.2,0.00203786]
[1758959884024,0.1026439,4010.3,4010.2,0.00203786]
[1758959884229,9.8726439,4010.3,4010.2,0.00203786]
[1758959884824,9.8726439,4010.3,4010.2,0.33263786]
[1758959885433,9.8726439,4010.3,4010.2,0.00203786]
[1758959891633,18.0804439,4010.3,4009.6,0.3295]
[1758959891832,0.3526439,4010.2,4009.6,0.2134]
[1758959892034,0.1026439,4010.1,4009.7,0.3295]
[1758959892237,0.3526439,4010.0,4009.7,0.3295]
[1758959892433,0.1026439,4009.9,4009.7,0.33194657]
[1758959892633,0.3526439,4009.8,4009.7,0.33194657]
[1758959895738,0.3526439,4009.8,4009.7,0.54534657]
[1758959897640,0.3526439,4009.8,4009.7,0.75874657]
[1758959897846,0.25,4009.8,4009.7,0.75874657]
[1758959898044,0.35312281,4009.8,4009.7,0.75874657]
[1758959910849,0.3531761,4009.8,4009.7,0.75874657]
[1758959923459,0.25,4009.8,4009.7,0.75874657]
[1758959923658,0.35523269,4009.8,4009.7,0.75874657]
[1758959925460,0.10523269,4009.8,4009.7,0.75874657]
[1758959932555,0.10523379,4009.8,4009.7,0.75874657]
[1758959936865,0.10524466,4009.8,4009.7,0.75874657]
[1758959965405,0.25,4010.3,4010.2,0.5331]
[1758959965598,9.27,4010.3,4010.2,0.5331]
[1758959966302,0.9298412,4010.3,4010.2,0.5331]
[1758959966605,8.66,4010.3,4010.2,0.5331]
[1758959967707,8.41,4010.3,4010.2,0.5331]
[1758959967906,8.66,4010.3,4010.2,0.5331]
[1758959970409,8.66,4010.3,4010.2,0.7522]
[1758959974408,8.41,4010.3,4010.2,0.7522]
[1758959974607,8.66,4010.3,4010.2,0.7522]
[1758959977314,8.76466314,4010.3,4010.2,0.7522]
[1758959996325,8.51466314,4010.3,4010.2,0.7522]
[1758959996624,8.76466314,4010.3,4010.2,0.7522]
[1758960000031,8.66,4010.3,4010.2,0.7522]
[1758960000235,8.66,4010.3,4010.2,0.5331]
[1758960000442,8.76433764,4010.3,4010.2,0.5331]
[1758960002232,8.76433764,4010.3,4010.2,0.3122]
[1758960003036,8.76433764,4010.3,4010.1,0.3147]
[1758960003330,0.10433764,4010.2,4010.1,0.3147]
[1758960004328,0.10433764,4010.2,4009.7,0.00244657]
[1758960004529,0.25,4010.3,4009.7,0.00244657]
[1758960004530,0.10433764,4010.1,4009.7,0.00244657]
[1758960004738,0.10433764,4010.0,4009.7,0.00244657]
[1758960004928,4.46361441,4011.6,4009.7,0.00244657]
[1758960004929,0.10433764,4009.9,4009.7,0.00244657]
[1758960005129,3.31213764,4009.8,4008.5,0.1343]
[1758960005328,3.2078,4008.9,4008.6,0.3147]
[1758960005524,0.35433764,4008.8,4008.6,0.5388]
[1758960005727,0.10433764,4008.7,4008.6,0.5388]
[1758960006138,0.10433764,4008.7,4008.6,0.5418393]
[1758960007240,0.10433764,4008.7,4008.6,0.7624393]
[1758960010538,0.10433764,4008.7,4008.6,5.7624393]
[1758960020140,0.10433764,4008.7,4008.6,6.0124393]
[1758960020441,0.10433764,4008.7,4008.6,5.7624393]
[1758960020747,0.10433764,4008.7,4008.6,1.0124393]
[1758960022150,0.10433764,4008.7,4008.6,0.7624393]
[1758960022550,0.59684759,4008.7,4008.6,0.7624393]
[1758960024648,0.59684759,4008.7,4008.6,0.3177393]
[1758960028650,41.39684759,4008.7,4008.6,0.3177393]
[1758960029951,41.39673136,4008.7,4008.6,0.3177393]
[1758960030751,0.10422141,4008.7,4008.6,0.3177393]
[1758960031852,40.90422141,4008.7,4008.6,0.3177393]
[1758960033254,41.15422141,4008.7,4008.6,0.3177393]
[1758960034156,41.15422141,4008.7,4008.6,0.5311393]
[1758960035256,41.15422141,4008.7,4008.6,0.3177393]
[1758960051264,41.15422141,4008.7,4008.6,0.0030393]
[1758960052968,47.93547422,4008.7,4008.1,0.5568]
[1758960053162,3.2078,4008.4,4008.3,0.3345]
[1758960053474,3.56202141,4008.4,4008.3,0.7801]
[1758960053877,3.56522378,4008.4,4008.3,0.78281035]
[1758960056075,3.46100237,4008.4,4008.3,0.78281035]
[1758960056282,3.56550193,4008.4,4008.3,0.78281035]
[1758960058183,3.56550193,4008.4,4008.3,0.55951035]
[1758960063392,3.46100237,4008.4,4008.3,0.55951035]
[1758960063688,3.56548646,4008.4,4008.3,0.55951035]
[1758960064083,3.31548646,4008.4,4008.3,0.78281035]
[1758960064486,3.56548646,4008.4,4008.3,0.78281035]
[1758960066195,0.35768646,4008.4,4008.3,0.78281035]
[1758960082197,3.56548646,4008.4,4008.3,0.33721035]
[1758960082397,4.05859345,4008.4,4008.3,0.33721035]
[1758960083190,4.05859345,4008.4,4008.0,0.1239]
[1758960083396,0.59759108,4008.3,4008.0,0.4504]
[1758960083587,0.84759108,4008.2,4008.0,0.4504]
[1758960083793,0.59759108,4008.1,4008.0,0.4504]
[1758960084301,0.59759108,4008.1,4008.0,0.4534298]
[1758960087198,0.59759108,4008.1,4007.5,0.3472]
[1758960087199,0.4232,4007.6,4007.5,0.3472]
[1758960087403,1.27079108,4007.6,4007.5,0.5628]
[1758960087799,42.07079108,4007.6,4007.5,0.5628]
[1758960088206,42.07079108,4007.6,4007.5,0.56470447]
[1758960088500,41.64759108,4007.6,4007.5,0.56470447]
[1758960088700,41.39759108,4007.6,4007.5,0.56470447]
[1758960089198,41.64759108,4007.6,4007.5,0.89120447]
[1758960089407,0.84759108,4007.6,4007.5,0.89120447]
[1758960089595,0.84700534,4007.6,4007.5,0.89120447]
[1758960094409,0.84695044,4007.6,4007.5,0.89120447]
[1758960097805,0.84695044,4007.6,4007.5,4.09900447]
[1758960100013,0.59695044,4007.6,4007.5,4.09900447]
[1758960103207,0.81075044,4007.6,4007.5,4.09900447]
[1758960103820,0.59695044,4007.6,4007.5,4.09900447]
[1758960116525,2.29065044,4007.6,4007.5,4.09900447]
[1758960118820,0.455,4008.0,4007.9,0.4413]
[1758960119027,1.6734,4008.2,4008.0,0.5682]
[1758960119322,2.1284,4008.2,4008.1,0.7755]
[1758960119720,2.1284,4008.2,4008.1,0.81672367]
[1758960119918,1.29333866,4008.2,4008.1,0.81672367]
[1758960120111,0.7738,4008.2,4008.1,0.81672367]
[1758960120311,0.987,4008.2,4008.1,0.81672367]
[1758960121628,0.455,4008.2,4008.1,0.81672367]
[1758960122623,0.205,4008.2,4008.1,0.81672367]
[1758960122824,0.205,4008.2,4008.1,4.02452367]
[1758960123422,0.00320237,4008.4,4008.2,0.3342]
[1758960123628,0.25320237,4008.4,4008.3,0.4413]
[1758960123831,0.25320237,4008.4,4008.3,0.81672367]
[1758960125429,0.45820237,4008.4,4008.3,0.81672367]
[1758960126233,0.20820237,4008.4,4008.3,0.81672367]
[1758960126530,0.25320237,4008.4,4008.3,0.81672367]
[1758960127729,0.00320237,4008.4,4008.3,0.81672367]
[1758960130829,0.10718199,4008.4,4008.3,0.81672367]
[1758960131737,0.10717918,4008.4,4008.3,0.81672367]
[1758960136439,0.10717918,4008.4,4008.3,1.06672367]
[1758960144841,0.10700565,4008.4,4008.3,1.06672367]
[1758960155153,0.10700565,4008.4,4008.3,0.81672367]
[1758960155352,0.10700565,4008.4,4008.3,1.06672367]
[1758960158049,0.10711841,4008.4,4008.3,1.06672367]
[1758960170973,0.10816954,4008.4,4008.3,1.06672367]
[1758960173470,0.10816954,4008.4,4008.3,0.81672367]
[1758960173677,0.53696954,4008.4,4008.3,1.06672367]
[1758960174374,0.31536954,4008.4,4008.3,1.06672367]
[1758960174876,0.10816954,4008.4,4008.3,1.06672367]
[1758960182377,0.7679,4009.4,4009.3,0.7648]
[1758960182689,0.7679,4009.4,4009.3,1.10691396]
[1758960182885,0.7679,4009.4,4009.3,1.14813763]
[1758960183585,5.77064527,4009.4,4009.3,0.04122367]
[1758960183884,5.77064527,4009.4,4009.1,3.2078]
[1758960183885,0.7679,4009.2,4009.1,3.2078]
[1758960184085,1.0179,4009.2,4009.1,3.2078]
[1758960184979,1.51212947,4009.2,4009.1,3.2078]
[1758960186586,1.51212947,4009.2,4008.8,0.3319]
[1758960186587,6.17302947,4009.2,4008.5,3.2078]
[1758960186885,0.7679,4008.6,4008.5,3.7475]
[1758960187082,1.26212947,4008.6,4008.5,3.7475]
[1758960190276,1.26212947,4008.6,4008.2,0.339]
[1758960190277,0.0718,4008.5,4008.2,0.339]
[1758960190475,0.4386,4008.1,4008.0,3.6737]
[1758960190687,1.24502947,4008.1,4008.0,3.6737]
[1758960191277,1.24502947,4008.1,4008.0,3.8841]
[1758960192681,1.24502947,4008.1,4008.0,4.1059]
[1758960194291,1.34895148,4008.1,4008.0,4.1059]
[1758960195587,1.34893502,4008.1,4008.0,4.1059]
[1758960196289,1.03673502,4008.1,4008.0,4.1059]
[1758960196598,0.59813502,4008.1,4008.0,4.3559]
[1758960199797,0.10390555,4008.1,4008.0,4.3559]
[1758960210195,0.53300555,4008.1,4008.0,4.3559]
[1758960210403,0.10390555,4008.1,4008.0,4.3559]
[1758960211302,0.10390555,4008.1,4008.0,4.1059]
[1758960211503,0.10390555,4008.1,4008.0,4.3559]
[1758960211902,1.23703188,4008.1,4008.0,4.3559]
[1758960213198,1.73118227,4008.1,4008.0,4.3559]
[1758960214802,1.93878227,4008.1,4008.0,4.3559]
[1758960216499,1.73118227,4008.1,4008.0,4.3559]
[1758960222707,2.46868227,4008.1,4008.0,3.8846]
[1758960224011,2.46868227,4008.1,4008.0,4.1071]
[1758960226608,2.7476599,4008.1,4008.0,4.1071]
[1758960228320,2.7476599,4008.1,4008.0,4.3571]
[1758960231317,2.7476599,4008.1,4008.0,4.1071]
[1758960231517,2.7476599,4008.1,4008.0,4.3571]
[1758960233523,1.33555594,4008.1,4008.0,4.3571]
[1758960233723,2.7476599,4008.1,4008.0,4.3571]
[1758960234028,2.7476599,4008.1,4008.0,4.1071]
[1758960235628,2.9976599,4008.1,4008.0,3.5468]
[1758960238230,2.9976599,4008.1,4008.0,3.2078]
[1758960238632,3.19617092,4008.1,4008.0,3.2078]
[1758960239521,2.9976599,4008.1,4008.0,3.5354]
[1758960239721,7.9976599,4008.1,4008.0,3.5354]
[1758960240232,7.9976599,4008.1,4008.0,3.2078]
[1758960241027,7.9976599,4008.1,4008.0,3.5354]
[1758960241530,8.19650683,4008.1,4008.0,3.2078]
[1758960242330,8.19650683,4008.1,4008.0,3.7493]
[1758960242331,7.9976599,4008.1,4008.0,3.7493]
[1758960242531,2.6892599,4008.1,4008.0,4.0872]
[1758960243035,1.27715594,4008.1,4008.0,4.0872]
[1758960243228,2.6892599,4008.1,4008.0,4.0872]
[1758960244036,2.4677599,4008.1,4008.0,4.0872]
[1758960246841,2.2177599,4008.1,4008.0,4.0872]
[1758960247028,2.2601599,4008.1,4008.0,4.0872]
[1758960249547,2.0101599,4008.1,4008.0,4.0872]
[1758960249840,2.2601599,4008.1,4008.0,4.0872]
[1758960250240,2.7089799,4008.1,4008.0,4.0872]
[1758960250441,2.70870584,4008.1,4008.0,4.0872]
[1758960260245,2.91460584,4008.1,4008.0,4.0872]
[1758960260547,3.43230584,4008.1,4008.0,4.0872]
[1758960263353,3.18230584,4008.1,4008.0,4.0872]
[1758960263851,3.43230584,4008.1,4008.0,4.0872]
[1758960266955,3.43230584,4008.1,4008.0,0.8794]
[1758960267651,3.43230584,4008.1,4008.0,1e-05]
[1758960267851,1.22125,4007.9,4007.8,3.2078]
[1758960268047,2.06903188,4007.9,4007.8,3.2078]
[1758960268852,2.06903188,4007.9,4007.8,3.4279]
[1758960269456,2.06903188,4007.9,4007.8,3.6547]
[1758960269749,2.06903188,4007.9,4007.8,3.4279]
[1758960271357,2.06903188,4007.9,4007.8,3.7464]
[1758960274158,0.59778188,4007.9,4007.8,3.9732]
[1758960274352,1.04663188,4007.9,4007.8,4.2232]
[1758960275663,1.04663188,4007.9,4007.8,3.9732]
[1758960276362,0.94300039,4007.9,4007.8,3.9732]
[1758960276562,1.04686472,4007.9,4007.8,3.9732]
[1758960279463,1.81926472,4007.9,4007.8,3.9732]
[1758960281662,2.06926472,4007.9,4007.8,3.9732]
[1758960283551,2.06926472,4007.9,4007.8,0.7654]
[1758960285059,2.0689966,4007.9,4007.8,0.7654]
[1758960288662,3.20243563,4007.9,4007.8,0.7654]
[1758960289361,4.33587466,4007.9,4007.8,0.7654]
[1758960292164,1.22128,4007.6,4007.5,3.97510447]
[1758960292369,3.20246563,4007.6,4007.5,3.97510447]
[1758960302680,3.20246563,4007.6,4007.5,3.41760447]
[1758960302978,3.20246563,4007.6,4007.5,3.73030447]
[1758960305564,3.20244661,4007.6,4007.5,3.73030447]
[1758960306071,3.20244661,4007.6,4007.5,3.94200447]
[1758960306268,3.20244661,4007.6,4007.5,3.41760447]
[1758960306474,3.20244661,4007.6,4007.5,3.73030447]
[1758960307165,3.20244661,4007.6,4007.5,3.94200447]
[1758960308182,3.20478026,4007.6,4007.5,3.94200447]
[1758960308574,3.20478026,4007.6,4007.5,3.20970447]
[1758960308777,3.20478026,4007.6,4007.5,0.00190447]
[1758960309981,44.00478026,4007.6,4007.5,0.00190447]
[1758960310182,1.18652,4007.2,4007.1,0.5505]
[1758960310370,3.17002026,4007.2,4007.1,0.5505]
[1758960310973,2.84962026,4007.2,4007.0,3.2078]
[1758960311175,0.4172,4006.1,4003.5,5.83586987]
[1758960311475,11.23361,4003.5,4000.7,3.13084909]
[1758960311676,3.40031709,4000.8,3999.9,0.20090336]
[1758960311873,0.44989,3998.6,3998.5,0.1256]
[1758960312080,0.45011,3996.7,3996.5,0.1256]
[1758960312277,40.18595282,3996.6,3992.0,0.1256]
[1758960312580,11.26211,3993.4,3992.0,0.00194708]
[1758960312773,1.44044282,3993.3,3993.0,0.1256]
[1758960312975,1.44044282,3993.3,3992.0,0.00194708]
[1758960312976,0.98995282,3993.2,3992.0,0.00194708]
[1758960313175,0.295,3994.6,3994.5,1e-08]
[1758960313384,0.59747288,3994.6,3994.5,4.5515026]
[1758960313578,0.3204,3995.5,3994.5,5.49749403]
[1758960313774,0.3204,3995.5,3994.6,0.295]
[1758960313775,0.1291,3995.0,3994.6,0.295]
[1758960313979,0.1291,3994.0,3993.6,1.13343903]
[1758960314176,0.46178628,3994.6,3993.7,3.5028]
[1758960314379,0.1291,3995.5,3994.4,3.2078]
[1758960314578,0.05076046,3995.5,3995.1,3.2078]
[1758960314769,0.05076046,3995.5,3994.5,0.296]
[1758960314770,0.05076046,3995.5,3995.2,0.299]
[1758960314970,0.05076046,3995.5,3995.3,3.5068]
[1758960315175,0.13177276,3995.5,3995.4,5.0]
[1758960315376,0.1291,3996.0,3995.4,8.5088]
[1758960315678,3.2078,3996.9,3991.2,11.26789]
[1758960315679,3.29920815,3995.5,3991.2,11.26789]
[1758960315871,3.29920815,3995.5,3990.3,11.27058]
[1758960315872,0.1291,3993.5,3993.0,3.2078]
[1758960316074,0.1291,3993.5,3993.1,0.313]
[1758960316272,0.1291,3992.0,3991.9,3.2078]
[1758960316474,0.06555956,3993.5,3991.9,7.57172832]
[1758960316673,3.2078,3995.8,3993.4,7.25672832]
[1758960316874,0.1291,3996.5,3995.6,4.04892832]
[1758960317069,11.24643,3998.9,3995.2,4.04892832]
[1758960317070,0.1291,3997.5,3996.4,7.25672832]
[1758960317273,0.1291,3998.0,3995.7,39.287]
[1758960317274,3.2078,3999.3,3997.4,11.30565664]
[1758960317485,0.1291,4000.5,3997.4,11.30565664]
[1758960317486,3.2078,4000.4,3998.9,3.2078]
[1758960317679,0.00285254,4000.4,4000.3,3.2078]
[1758960317870,0.1291,4001.0,4000.3,8.5268]
[1758960318075,0.1291,3999.1,3998.9,3.21075643]
[1758960318271,0.1291,3998.4,3996.9,0.323]
[1758960318476,0.1291,3998.4,3994.1,254.87982]
[1758960318477,0.1291,3997.0,3995.8,4.04892832]
[1758960318675,0.1291,3998.4,3996.9,3.2078]
[1758960318880,0.1291,3998.4,3997.5,3.2078]
[1758960319077,0.1291,3998.4,3997.6,0.325]
[1758960319281,0.45132369,3998.4,3997.9,3.2078]
[1758960319476,0.45132369,3998.4,3998.3,3.2078]
[1758960319681,0.13092369,3998.4,3997.9,0.325]
[1758960320080,0.13092369,3998.4,3997.7,3.2078]
[1758960320276,0.3204,3997.9,3997.8,0.325]
[1758960320681,0.13092369,3998.4,3997.8,5.325]
[1758960320881,0.13092369,3998.4,3997.8,0.325]
[1758960321084,0.13092369,3998.4,3998.1,3.2078]
[1758960321285,0.3204,3998.3,3998.2,0.325]
[1758960321785,0.3204,3998.3,3998.1,3.2078]
[1758960321986,0.13092369,3998.4,3997.6,0.00270496]
[1758960321987,0.45132369,3998.4,3997.6,3.21050496]
[1758960322190,0.13092369,3998.4,3998.3,3.2078]
[1758960322496,0.3204,3999.7,3998.3,3.5328]
[1758960322785,0.5322,4000.6,3999.1,0.44983]
[1758960322991,0.5322,4000.6,3999.9,3.2078]
[1758960323194,0.5322,4000.6,4000.0,4.37392832]
[1758960323494,0.00228547,4000.6,4000.0,0.325]
[1758960323785,0.00228547,4000.6,4000.1,1.5131]
[1758960323981,0.00228547,4000.6,4000.2,0.324]
[1758960324184,0.53448547,4000.6,4000.1,1.5131]
[1758960324387,6.11368276,4000.2,4000.1,0.87550982]